fUST/lending_fUST_20240206
["ID","MTS","AMOUNT","RATE_DAILY","PERIOD"]
[313356278,1707227444015,-500.0,0.00027397,3]
[313356280,1707227444024,-500.0,0.00027397,3]
[313356282,1707227444033,-500.0,0.00027397,3]
[313356284,1707227444043,-167.74248212,0.00027397,3]
[313356293,1707227444123,-85.49329828,0.00027397,3]
[313356295,1707227444134,-500.0,0.00027397,2]
[313356297,1707227444143,-500.0,0.00027397,3]
[313356299,1707227444153,-500.0,0.00027397,3]
[313356301,1707227444162,-500.0,0.00027397,3]
[313356303,1707227444172,-500.0,0.00027397,3]
[313356305,1707227444181,-500.0,0.00027397,3]
[313356307,1707227444191,-500.32,0.00027397,3]
[313356309,1707227444201,-500.0,0.00027397,3]
[313356311,1707227444211,-5276.04,0.00027397,3]
[313356313,1707227444221,-500.0,0.00027397,3]
[313356315,1707227444231,-500.0,0.00027397,3]
[313356317,1707227444240,-500.0,0.00027397,3]
[313356319,1707227444250,-500.0,0.00027397,3]
[313356321,1707227444260,-500.0,0.00027397,3]
[313356323,1707227444270,-520.34658269,0.00027397,3]
[313356325,1707227444279,-500.0,0.00027397,3]
[313356327,1707227444289,-500.0,0.00027397,3]
[313356329,1707227444299,-500.0,0.00027397,3]
[313356331,1707227444308,-981.56,0.00027397,3]
[313356333,1707227444318,-500.0,0.00027397,3]
[313356335,1707227444327,-500.0,0.00027397,3]
[313356337,1707227444337,-500.0,0.00027397,3]
[313356339,1707227444346,-500.0,0.00027397,3]
[313356341,1707227444356,-500.0,0.00027397,3]
[313356343,1707227444366,-500.0,0.00027397,3]
[313356345,1707227444376,-500.0,0.00027397,3]
[313356347,1707227444385,-500.0,0.00027397,3]
[313356349,1707227444395,-500.0,0.00027397,3]
[313356351,1707227444405,-500.0,0.00027397,3]
[313356353,1707227444417,-500.0,0.00027397,3]
[313356355,1707227444426,-500.0,0.00027397,3]
[313356357,1707227444437,-500.0,0.00027397,3]
[313356368,1707227444539,-502.22776566,0.00027397,3]
[313356370,1707227444549,-500.0,0.00027397,3]
[313356372,1707227444558,-583.68,0.00027397,3]
[313356374,1707227444569,-500.0,0.00027397,3]
[313356376,1707227444578,-500.0,0.00027397,3]
[313356378,1707227444589,-500.0,0.00027397,3]
[313356380,1707227444599,-500.0,0.00027397,3]
[313356382,1707227444608,-1000.0,0.00027397,2]
[313356384,1707227444617,-500.0,0.00027397,3]
[313356386,1707227444626,-500.0,0.00027397,3]
[313356388,1707227444636,-500.0,0.00027397,3]
[313356390,1707227444646,-500.0,0.00027397,3]
[313356393,1707227444656,-500.0,0.00027397,3]
[313356395,1707227444666,-500.0,0.00027397,3]
[313356397,1707227444675,-500.0,0.00027397,3]
[313356399,1707227444685,-2734.84,0.00027397,3]
[313356400,1707227444695,-500.0,0.00027397,3]
[313356403,1707227444705,-500.0,0.00027397,3]
[313356404,1707227444714,-500.0,0.00027397,3]
[313356406,1707227444724,-500.0,0.00027397,3]
[313356409,1707227444735,-252.93329765,0.00027397,2]
[313356411,1707227444745,-500.0,0.00027397,3]
[313356413,1707227444756,-500.0,0.00027397,3]
[313356414,1707227444766,-500.0,0.00027397,3]
[313356417,1707227444775,-1651.2,0.00027397,3]
[313356418,1707227444785,-500.0,0.00027397,3]
[313356421,1707227444797,-500.0,0.00027397,3]
[313356423,1707227444807,-816.28,0.00027397,3]
[313356425,1707227444818,-7347.03,0.00027397,3]
[313356427,1707227444828,-500.0,0.00027397,3]
[313356429,1707227444837,-500.0,0.00027397,3]
[313356431,1707227444849,-500.0,0.00027397,3]
[313356433,1707227444861,-253.12630174,0.00027397,3]
[313356435,1707227444872,-6366.03500802,0.00027397,10]
[313356437,1707227444882,-500.0,0.00027397,2]
[313356439,1707227444893,-3795.36,0.00027397,3]
[313356441,1707227444903,-3303.16,0.00027397,3]
[313356443,1707227444912,-500.0,0.00027397,3]
[313356445,1707227444921,-4044.51,0.00027397,3]
[313356447,1707227444930,-615.4781515,0.00027397,2]
[313356449,1707227444941,-475.52151966,0.00027428,2]
[313356451,1707227444950,-511.77979205,0.000275,2]
[313356453,1707227444960,-33543.7422638,0.00027528,2]
[313356455,1707227444970,-322.14005268,0.00027528,2]
[313356457,1707227444979,-59713.63210989,0.00027571,2]
[313356458,1707227444989,-151.0,0.00027571,2]
[313356459,1707227444999,-151.0,0.00027571,2]
[313356460,1707227445010,-2000.0,0.000276,2]
[313356461,1707227445019,-2000.0,0.0002761,2]
[313356462,1707227445029,-2000.0,0.0002762,2]
[313356463,1707227445038,-2000.0,0.0002763,2]
[313356464,1707227445047,-193.68100984,0.00027639,2]
[313356465,1707227445057,-500.0,0.00027639,2]
[313356466,1707227445066,-423.03355481,0.00027639,2]
[313356468,1707227445077,-583.21468473,0.00027639,2]
[313356470,1707227445086,-242.15308613,0.00027639,2]
[313356472,1707227445096,-500.0,0.00027639,2]
[313356474,1707227445105,-361.46109826,0.00027639,2]
[313356476,1707227445115,-500.0,0.00027639,2]
[313356478,1707227445124,-2000.0,0.0002764,2]
[313356480,1707227445134,-3791.242066,0.0002765,2]
[313356482,1707227445144,-264.14942563,0.00027668,2]
[313356484,1707227445153,-621.91359189,0.00027668,2]
[313356486,1707227445162,-245.52238542,0.00027668,2]
[313356488,1707227445171,-358.56819931,0.00027669,2]
[313356490,1707227445180,-966.00190129,0.00027669,2]
[313356492,1707227445189,-261.56000256,0.00027669,2]
[313356494,1707227445199,-231.14973041,0.00027669,2]
[313356496,1707227445209,-1011.22867727,0.00027669,2]
[313356497,1707227445220,-392.04545643,0.00027671,3]
[313356499,1707227445230,-500.0,0.00027671,3]
[313356501,1707227445239,-752.57897346,0.00027671,2]
[313356503,1707227445250,-576.72720631,0.00027671,3]
[313356506,1707227445262,-500.0,0.00027671,3]
[313356508,1707227445271,-500.0,0.00027671,3]
[313356510,1707227445282,-500.0,0.00027671,2]
[313356512,1707227445292,-629.75,0.00027671,3]
[313356514,1707227445303,-890.4,0.00027671,3]
[313356516,1707227445313,-500.0,0.00027671,3]
[313356518,1707227445324,-500.0,0.00027671,3]
[313356520,1707227445334,-500.0,0.00027671,3]
[313356522,1707227445343,-221.14297701,0.00027671,3]
[313356524,1707227445352,-151.0,0.00027671,2]
[313356525,1707227445361,-500.0,0.00027671,3]
[313356528,1707227445370,-500.0,0.00027671,2]
[313356530,1707227445380,-500.0,0.00027671,3]
[313356532,1707227445389,-151.0,0.00027671,2]
[313356533,1707227445398,-500.0,0.00027671,3]
[313356536,1707227445407,-500.0,0.00027671,3]
[313356537,1707227445416,-2326.27,0.00027671,3]
[313356539,1707227445425,-500.0,0.00027671,3]
[313356541,1707227445434,-500.0,0.00027671,3]
[313356543,1707227445443,-1504.92,0.00027671,3]
[313356546,1707227445453,-529.35,0.00027671,3]
[313356547,1707227445462,-265.76597744,0.00027671,3]
[313356550,1707227445471,-500.0,0.00027671,3]
[313356553,1707227445480,-534.41341266,0.00027671,2]
[313356556,1707227445489,-289.40686167,0.00027671,3]
[313356559,1707227445498,-500.0,0.00027671,3]
[313356561,1707227445507,-500.0,0.00027671,3]
[313356564,1707227445517,-5276.04,0.00027671,3]
[313356568,1707227445526,-500.0,0.00027671,3]
[313356571,1707227445535,-219.807795,0.00027671,2]
[313356573,1707227445545,-500.0,0.00027671,3]
[313356577,1707227445554,-500.0,0.00027671,3]
[313356580,1707227445563,-500.0,0.00027671,3]
[313356581,1707227445572,-500.0,0.00027671,3]
[313356584,1707227445582,-981.56,0.00027671,3]
[313356586,1707227445591,-500.0,0.00027671,3]
[313356588,1707227445600,-500.0,0.00027671,3]
[313356590,1707227445609,-500.0,0.00027671,3]
[313356592,1707227445618,-538.06757753,0.00027671,3]
[313356593,1707227445626,-500.0,0.00027671,3]
[313356596,1707227445636,-500.0,0.00027671,3]
[313356597,1707227445645,-500.0,0.00027671,3]
[313356600,1707227445655,-583.68,0.00027671,3]
[313356601,1707227445664,-365.92688532,0.00027671,3]
[313356603,1707227445674,-500.0,0.00027671,3]
[313356606,1707227445683,-1000.0,0.00027671,2]
[313356608,1707227445692,-500.0,0.00027671,3]
[313356609,1707227445702,-500.0,0.00027671,3]
[313356611,1707227445711,-2734.84,0.00027671,3]
[313356613,1707227445721,-151.0,0.00027671,2]
[313356616,1707227445730,-500.0,0.00027671,3]
[313356618,1707227445739,-500.0,0.00027671,3]
[313356619,1707227445750,-634.38311132,0.00027671,3]
[313356621,1707227445759,-500.0,0.00027671,3]
[313356623,1707227445768,-1651.2,0.00027671,3]
[313356625,1707227445777,-500.0,0.00027671,3]
[313356627,1707227445786,-816.28,0.00027671,3]
[313356629,1707227445795,-7347.03,0.00027671,3]
[313356631,1707227445804,-500.0,0.00027671,3]
[313356633,1707227445814,-500.0,0.00027671,2]
[313356635,1707227445823,-3795.36,0.00027671,3]
[313356637,1707227445833,-3303.16,0.00027671,3]
[313356639,1707227445842,-4044.51,0.00027671,3]
[313356641,1707227445851,-4521.87747527,0.00027855,2]
[313356643,1707227445862,-514.05744456,0.00027945,3]
[313356645,1707227445872,-500.0,0.00027945,3]
[313356647,1707227445880,-500.0,0.00027945,3]
[313356649,1707227445890,-500.0,0.00027945,2]
[313356651,1707227445899,-629.75,0.00027945,3]
[313356653,1707227445909,-890.4,0.00027945,3]
[313356655,1707227445918,-500.0,0.00027945,3]
[313356657,1707227445927,-500.0,0.00027945,3]
[313356659,1707227445938,-500.0,0.00027945,3]
[313356661,1707227445947,-500.0,0.00027945,3]
[313356663,1707227445956,-500.0,0.00027945,2]
[313356665,1707227445964,-500.0,0.00027945,3]
[313356667,1707227445973,-151.0,0.00027945,2]
[313356669,1707227445982,-500.0,0.00027945,3]
[313356671,1707227445990,-500.0,0.00027945,3]
[313356673,1707227446001,-2326.27,0.00027945,3]
[313356675,1707227446010,-500.0,0.00027945,3]
[313356677,1707227446019,-459.09883772,0.00027945,3]
[313356679,1707227446029,-1504.92,0.00027945,3]
[313356681,1707227446038,-529.35,0.00027945,3]
[313356683,1707227446047,-499.56277619,0.00027945,3]
[313356685,1707227446056,-500.0,0.00027945,3]
[313356687,1707227446065,-5276.04,0.00027945,3]
[313356689,1707227446075,-500.0,0.00027945,3]
[313356691,1707227446084,-500.0,0.00027945,3]
[313356693,1707227446093,-500.0,0.00027945,3]
[313356695,1707227446103,-500.0,0.00027945,3]
[313356697,1707227446117,-500.0,0.00027945,3]
[313356699,1707227446128,-981.56,0.00027945,3]
[313356701,1707227446148,-500.0,0.00027945,3]
[313356703,1707227446158,-638.16701304,0.00027945,3]
[313356705,1707227446168,-500.0,0.00027945,3]
[313356707,1707227446178,-500.0,0.00027945,3]
[313356709,1707227446188,-500.0,0.00027945,3]
[313356711,1707227446198,-500.0,0.00027945,3]
[313356713,1707227446207,-583.68,0.00027945,3]
[313356715,1707227446217,-153.79380834,0.00027945,3]
[313356717,1707227446227,-1000.0,0.00027945,2]
[313356719,1707227446236,-500.0,0.00027945,3]
[313356721,1707227446246,-500.0,0.00027945,3]
[313356723,1707227446259,-2734.84,0.00027945,3]
[313356725,1707227446268,-151.0,0.00027945,2]
[313356727,1707227446279,-500.0,0.00027945,3]
[313356729,1707227446289,-500.0,0.00027945,3]
[313356731,1707227446298,-500.0,0.00027945,3]
[313356733,1707227446308,-1651.2,0.00027945,3]
[313356734,1707227446318,-500.0,0.00027945,3]
[313356737,1707227446328,-816.28,0.00027945,3]
[313356738,1707227446338,-7347.03,0.00027945,3]
[313356740,1707227446348,-500.0,0.00027945,3]
[313356743,1707227446358,-500.0,0.00027945,2]
[313356745,1707227446370,-3795.36,0.00027945,3]
[313356747,1707227446379,-3303.16,0.00027945,3]
[313356749,1707227446389,-4044.51,0.00027945,3]
[313356750,1707227446399,-22080.8017819,0.00027999,2]
[313356754,1707227446422,-2785.38056895,0.00027999,2]
[313356756,1707227446433,-329.47296623,0.00027999,2]
[313356777,1707227446693,-490.16024973,0.00027387,3]
[313358346,1707228633469,-155.00465014,0.00018685,3]
[313358347,1707228633478,-1513.05908057,0.00018685,2]
[313358348,1707228633487,-271.392591,0.00018686,2]
[313358349,1707228633496,-2605.60915647,0.00018886,2]
[313358350,1707228633505,-1040.8718319,0.00018895,2]
[313358351,1707228633514,-24900.0,0.0001899,2]
[313358352,1707228633524,-352.47365319,0.0001903,2]
[313358353,1707228633533,-250.0,0.0001913,2]
[313358354,1707228633542,-165.662086,0.00019178,2]
[313358355,1707228633551,-715.4821902,0.00019216,2]
[313358356,1707228633560,-200.0,0.00020888,2]
[313358357,1707228633569,-178.6835397,0.00020916,2]
[313358358,1707228633578,-19124.88822616,0.00021015,2]
[313358359,1707228633586,-18363.90690369,0.00021016,2]
[313358360,1707228633595,-167.314271,0.00021558,2]
[313358361,1707228633604,-166.666666,0.00021918,2]
[313358362,1707228633613,-352.47365312,0.00022396,2]
[313358363,1707228633621,-280.0,0.00022977,7]
[313358364,1707228633630,-166.666666,0.000232,2]
[313358365,1707228633639,-4603.12,0.000241,3]
[313358366,1707228633648,-24779.49150895,0.0002411,2]
[313358367,1707228633660,-604.74653321,0.0002411,2]
[313358368,1707228633669,-1420.90671299,0.0002411,2]
[313358369,1707228633687,-2128.55559204,0.0002411,2]
[313358370,1707228633696,-1311.71212031,0.0002411,2]
[313358371,1707228633706,-166.666666,0.00024482,2]
[313358372,1707228633715,-980.14371591,0.00024656,2]
[313358373,1707228633724,-391.0,0.00025275,7]
[313358374,1707228633734,-352.47365312,0.00025761,2]
[313358375,1707228633743,-155.00465014,0.00026,7]
[313358376,1707228633753,-257.96050685,0.00026847,2]
[313358377,1707228633762,-155.00465014,0.00027,2]
[313358378,1707228633771,-151.0,0.000273,2]
[313358379,1707228633781,-2907.75154503,0.00027377,3]
[313358435,1707228638440,-925.17845497,0.00027377,3]
[313358438,1707228638449,-5523.74,0.00027377,3]
[313358440,1707228638459,-3835.93,0.00027377,3]
[313358443,1707228638469,-1652.14329151,0.00027387,2]
[313358458,1707228638587,-155.66792682,0.00027387,2]
[313358460,1707228638597,-622.36860432,0.00027387,2]
[313358462,1707228638606,-155.00465014,0.00027387,2]
[313358465,1707228638616,-1013.09837271,0.00027387,2]
[313358467,1707228638625,-765.83829115,0.00027387,2]
[313358469,1707228638635,-10319.71270088,0.00027387,2]
[313358471,1707228638644,-280.43479172,0.00027387,2]
[313358472,1707228638653,-2089.40946159,0.00027387,2]
[313358474,1707228638662,-300.0,0.00027387,2]
[313358476,1707228638671,-1803.71934173,0.00027393,2]
[313358479,1707228638682,-260.89555211,0.00027393,2]
[313358481,1707228638691,-323.81557453,0.00027393,2]
[313358482,1707228638700,-388.53169186,0.00027394,2]
[313358485,1707228638709,-200.0,0.00027394,2]
[313358486,1707228638719,-2465.67574349,0.00027395,2]
[313358488,1707228638728,-20917.8332955,0.00027395,2]
[313358491,1707228638737,-262.41441764,0.00027395,2]
[313358493,1707228638747,-1265.83031586,0.00027395,2]
[313358495,1707228638757,-352.1195832,0.00027396,2]
[313358497,1707228638766,-2189.69350103,0.00027396,2]
[313358498,1707228638775,-500.0,0.00027397,3]
[313358500,1707228638786,-500.0,0.00027397,3]
[313358502,1707228638795,-500.0,0.00027397,2]
[313358504,1707228638804,-500.0,0.00027397,3]
[313358507,1707228638814,-500.0,0.00027397,3]
[313358509,1707228638825,-500.0,0.00027397,3]
[313358511,1707228638835,-551.04,0.00027397,3]
[313358513,1707228638845,-779.1,0.00027397,3]
[313358515,1707228638855,-500.0,0.00027397,3]
[313358517,1707228638864,-500.0,0.00027397,3]
[313358519,1707228638874,-155.0,0.00027397,2]
[313358521,1707228638883,-500.0,0.00027397,3]
[313358523,1707228638893,-500.0,0.00027397,3]
[313358524,1707228638902,-500.0,0.00027397,3]
[313358526,1707228638911,-500.0,0.00027397,3]
[313358528,1707228638921,-500.0,0.00027397,3]
[313358530,1707228638930,-150.62000597,0.00027397,3]
[313358532,1707228638940,-500.0,0.00027397,3]
[313358534,1707228638950,-3320.94,0.00027397,3]
[313358536,1707228638960,-3538.94,0.00027397,3]
[313358538,1707228638969,-500.0,0.00027397,3]
[313358540,1707228638979,-500.0,0.00027397,3]
[313358542,1707228638990,-2890.27,0.00027397,3]
[313358545,1707228639000,-263.33966855,0.00027397,3]
[313358546,1707228639010,-500.0,0.00027397,3]
[313358548,1707228639020,-500.0,0.00027397,3]
[313358550,1707228639032,-500.0,0.00027397,3]
[313358552,1707228639042,-510.72,0.00027397,3]
[313358555,1707228639053,-4616.54,0.00027397,3]
[313358556,1707228639063,-1000.0,0.00027397,2]
[313358559,1707228639074,-500.0,0.00027397,3]
[313358561,1707228639083,-500.0,0.00027397,3]
[313358562,1707228639094,-522.10151487,0.00027397,3]
[313358563,1707228639104,-2392.99,0.00027397,3]
[313358564,1707228639113,-858.87,0.00027397,3]
[313358565,1707228639123,-500.0,0.00027397,3]
[313358566,1707228639132,-500.0,0.00027397,3]
[313358567,1707228639142,-714.24,0.00027397,3]
[313358568,1707228639151,-500.0,0.00027397,3]
[313358569,1707228639162,-500.0,0.00027397,3]
[313358570,1707228639171,-500.0,0.00027397,3]
[313358571,1707228639180,-2035.49,0.00027397,3]
[313358572,1707228639189,-1444.8,0.00027397,3]
[313358573,1707228639199,-500.0,0.00027397,2]
[313358574,1707228639209,-1373.13,0.00027397,3]
[313358575,1707228639218,-500.0,0.00027397,3]
[313358576,1707228639227,-6428.65,0.00027397,3]
[313358577,1707228639237,-500.0,0.00027397,2]
[313358578,1707228639246,-511.77979205,0.000275,2]
[313358579,1707228639256,-500.0,0.00027671,3]
[313358581,1707228639265,-510.3265111,0.00027671,3]
[313358583,1707228639275,-500.0,0.00027671,2]
[313358585,1707228639286,-563.8551295,0.00027671,3]
[313358587,1707228639295,-220.30449349,0.00027671,3]
[313358589,1707228639304,-174.1628,0.00027671,3]
[313358591,1707228639313,-551.04,0.00027671,3]
[313358593,1707228639322,-779.1,0.00027671,3]
[313358595,1707228639332,-500.0,0.00027671,3]
[313358597,1707228639342,-500.0,0.00027671,3]
[313358598,1707228639351,-500.0,0.00027671,3]
[313358600,1707228639360,-500.0,0.00027671,3]
[313358603,1707228639369,-500.0,0.00027671,3]
[313358604,1707228639379,-500.0,0.00027671,3]
[313358607,1707228639388,-500.0,0.00027671,3]
[313358609,1707228639399,-500.0,0.00027671,3]
[313358611,1707228639408,-3320.94,0.00027671,3]
[313358613,1707228639418,-3538.94,0.00027671,3]
[313358615,1707228639428,-500.0,0.00027671,3]
[313358617,1707228639437,-500.0,0.00027671,3]
[313358619,1707228639446,-2890.27,0.00027671,3]
[313358621,1707228639455,-500.0,0.00027671,3]
[313358623,1707228639465,-500.0,0.00027671,3]
[313358625,1707228639474,-500.0,0.00027671,3]
[313358627,1707228639483,-510.72,0.00027671,3]
[313358629,1707228639492,-4616.54,0.00027671,3]
[313358631,1707228639501,-1000.0,0.00027671,2]
[313358633,1707228639510,-500.0,0.00027671,3]
[313358635,1707228639519,-500.0,0.00027671,3]
[313358637,1707228639528,-2392.99,0.00027671,3]
[313358639,1707228639538,-858.87,0.00027671,3]
[313358641,1707228639547,-500.0,0.00027671,3]
[313358643,1707228639556,-500.0,0.00027671,3]
[313358645,1707228639565,-714.24,0.00027671,3]
[313358647,1707228639574,-500.0,0.00027671,3]
[313358649,1707228639584,-500.0,0.00027671,3]
[313358651,1707228639592,-500.0,0.00027671,3]
[313358653,1707228639602,-2035.49,0.00027671,3]
[313358655,1707228639611,-1444.8,0.00027671,3]
[313358657,1707228639619,-500.0,0.00027671,2]
[313358658,1707228639629,-1373.13,0.00027671,3]
[313358661,1707228639641,-500.0,0.00027671,3]
[313358663,1707228639653,-6428.65,0.00027671,3]
[313358665,1707228639665,-500.0,0.00027671,2]
[313358668,1707228639676,-427.96936773,0.000278,2]
[313358670,1707228639688,-200.0,0.00027802,15]
[313358672,1707228639700,-348.0,0.00027802,15]
[313358674,1707228639711,-153.89800342,0.00027835,2]
[313358677,1707228639721,-859.97168621,0.000279,2]
[313358851,1707228641494,-1187.86133508,0.000279,2]
[313358853,1707228641510,-6711.06441536,0.000279,2]
[313358856,1707228641526,-38295.77438757,0.000279,2]
[313358859,1707228641543,-4389.60104605,0.000279,2]
[313358861,1707228641561,-1268.1520969,0.000279,2]
[313359042,1707228643256,-505.8,0.000279,2]
[313359043,1707228643315,-52665.5705832,0.000279,2]
[313359501,1707229832372,-2605.60915647,0.00021434,2]
[313359502,1707229832381,-155.00310006,0.00021434,4]
[313359504,1707229832391,-118.72184174,0.00021434,2]
[313359508,1707229832426,-205.22034734,0.00021434,2]
[313359509,1707229832435,-1513.05908057,0.00021435,2]
[313359510,1707229832444,-322.23788217,0.00021436,2]
[313359512,1707229832453,-3933.90228825,0.00021437,2]
[313359660,1707229841643,-17017.47255602,0.00021437,2]
[313359661,1707229841652,-6803.77654598,0.00021438,2]
[313359662,1707229841662,-6803.77654598,0.00021438,2]
[313359663,1707229841673,-1575.6601209,0.0002144,2]
[313359664,1707229841683,-3195.54127672,0.0002244,2]
[313359665,1707229841695,-9603.7729544,0.0002244,2]
[313359666,1707229841707,-12100.68576888,0.0002244,2]
[313359667,1707229841717,-1449.9397613,0.00022442,2]
[313359668,1707229841726,-686.1533791,0.00022457,2]
[313359669,1707229841736,-270.441252,0.00023376,2]
[313359670,1707229841746,-637.44922514,0.0002409,2]
[313359671,1707229841755,-4235.84120454,0.00024107,3]
[313359685,1707229843482,-1617.02879546,0.00024107,3]
[313359686,1707229843492,-5549.51,0.00024107,3]
[313359687,1707229843502,-7023.45,0.00024117,3]
[313359688,1707229843511,-5670.63,0.00024127,3]
[313359689,1707229843520,-6836.11719381,0.00024137,2]
[313359690,1707229843530,-200.0,0.00025708,7]
[313359691,1707229843540,-167.314271,0.00026384,2]
[313359692,1707229843550,-3850.52,0.0002698,3]
[313359693,1707229843559,-1736.94449364,0.00027,4]
[313359694,1707229843569,-162.0,0.00027,2]
[313359695,1707229843578,-155.00310006,0.00027079,2]
[313359696,1707229843587,-154.98112192,0.0002708,2]
[313359697,1707229843598,-463.45684282,0.00027356,2]
[313359698,1707229843608,-300.0,0.00027387,2]
[313359699,1707229843618,-1240.22302861,0.00027387,2]
[313359700,1707229843628,-451.72962494,0.00027387,2]
[313359701,1707229843637,-500.0,0.00027395,2]
[313359702,1707229843648,-7977.34507232,0.00027395,2]
[313359703,1707229843657,-261.69062499,0.00027395,2]
[313359704,1707229843666,-199.63780309,0.00027395,2]
[313359705,1707229843676,-2820.59125039,0.00027395,2]
[313359706,1707229843693,-155.88409599,0.00027396,2]
[313359707,1707229843707,-500.0,0.00027397,3]
[313359708,1707229843717,-500.0,0.00027397,3]
[313359709,1707229843727,-460.88379087,0.00027397,3]
[313359710,1707229843736,-500.0,0.00027397,3]
[313359711,1707229843746,-505.12,0.00027397,3]
[313359712,1707229843756,-714.18,0.00027397,3]
[313359713,1707229843765,-500.0,0.00027397,3]
[313359714,1707229843775,-155.0,0.00027397,2]
[313359715,1707229843785,-500.0,0.00027397,2]
[313359716,1707229843794,-306.34839501,0.00027397,3]
[313359717,1707229843804,-500.0,0.00027397,3]
[313359718,1707229843813,-500.0,0.00027397,3]
[313359719,1707229843823,-500.0,0.00027397,3]
[313359720,1707229843833,-3044.19,0.00027397,3]
[313359721,1707229843842,-3265.1,0.00027397,3]
[313359722,1707229843852,-500.0,0.00027397,3]
[313359723,1707229843861,-500.0,0.00027397,3]
[313359724,1707229843871,-500.0,0.00027397,3]
[313359725,1707229843881,-500.0,0.00027397,3]
[313359726,1707229843891,-4231.82,0.00027397,3]
[313359727,1707229843900,-500.0,0.00027397,3]
[313359728,1707229843910,-814.58,0.00027397,3]
[313359729,1707229843920,-500.0,0.00027397,3]
[313359730,1707229843930,-500.0,0.00027397,3]
[313359731,1707229843940,-1000.0,0.00027397,2]
[313359732,1707229843949,-500.0,0.00027397,2]
[313359733,1707229843959,-500.0,0.00027397,3]
[313359734,1707229843969,-500.0,0.00027397,3]
[313359735,1707229843978,-2193.57,0.00027397,3]
[313359736,1707229843988,-500.0,0.00027397,3]
[313359737,1707229843998,-391.16818069,0.00027397,3]
[313359738,1707229844008,-500.0,0.00027397,3]
[313359739,1707229844018,-654.72,0.00027397,3]
[313359740,1707229844028,-607.34267252,0.00027397,3]
[313359741,1707229844037,-5892.93,0.00027397,3]
[313359742,1707229844046,-1324.4,0.00027397,3]
[313359743,1707229844056,-500.0,0.00027397,2]
[313359744,1707229844066,-1865.86,0.00027397,3]
[313359745,1707229844076,-1258.7,0.00027397,3]
[313359746,1707229844086,-2649.41,0.00027397,3]
[313359747,1707229844096,-500.0,0.00027397,3]
[313359748,1707229844107,-155.00310006,0.00027662,7]
[313359749,1707229844117,-19124.88822616,0.00027664,2]
[313359750,1707229844127,-500.0,0.00027671,3]
[313359751,1707229844137,-500.0,0.00027671,3]
[313359752,1707229844147,-500.0,0.00027671,3]
[313359753,1707229844157,-505.12,0.00027671,3]
[313359754,1707229844305,-714.18,0.00027671,3]
[313359755,1707229844315,-500.0,0.00027671,3]
[313359756,1707229844325,-504.51339849,0.00027671,2]
[313359757,1707229844335,-500.0,0.00027671,3]
[313359758,1707229844344,-500.0,0.00027671,3]
[313359759,1707229844354,-624.90051676,0.00027671,3]
[313359760,1707229844363,-1588.56840976,0.00027671,3]
[313359761,1707229844377,-1455.62159024,0.00027671,3]
[313359762,1707229844386,-3265.1,0.00027671,3]
[313359763,1707229844395,-500.0,0.00027671,3]
[313359764,1707229844405,-314.33770212,0.00027671,3]
[313359770,1707229846481,-2790.51,0.00027397,3]
[313359772,1707229846490,-185.66229788,0.00027671,3]
[313359774,1707229846499,-500.0,0.00027671,3]
[313359776,1707229846508,-210.82770212,0.00027671,3]
[313359779,1707230775701,977.283044,0.00018475,2]
[313359780,1707230843352,622.36860432,0.00018475,2]